Cogmind - Beta 10.2 @@@ ROGUE MODE // 2022.01.16 @ 19:36:13 Player: lumberblack Result: Smashed by cave-in Performance ------------- Evolutions (0) 0 Regions Visited (2) 400 Robots Destroyed (31) 155 Value Destroyed (586) 586 Prototype IDs (2) 40 Alien Tech Used (0) 0 Bonus (-190) -190 TOTAL SCORE: 991 Bonus ------- Friendly Fire -190 Cogmind --------- Core Integrity 0/250 Matter 263/300 Energy 100/100 System Corruption 13% Temperature Cool (0) Movement Treading (200) Ox2 Location -10/Mines Parts ------- > --- POWER (1) -------- (None) > --- PROPULSION (2) --- Improved Treads > --- UTILITY (2) ------ High-capacity Storage Unit High-capacity Storage Unit > --- WEAPON (2) ------- Rocket Launcher > --- INVENTORY (20) --- Ion Engine Ion Engine Light Treads Light Treads Light Treads Light Treads Improved Treads Improved Treads Large Storage Unit Large Storage Unit Large Battery (300) Light Armor Plating Thief Drone Bay Particle Gun Particle Gun Particle Gun Particle Gun Assault Rifle Assault Rifle Mining Laser Peak State ------------ > --- POWER ------------ Ion Engine > --- PROPULSION ------- Improved Treads Improved Treads > --- UTILITY ---------- Large Storage Unit Improved Terrain Scanner > --- WEAPON ----------- Particle Gun Particle Gun > --- INVENTORY -------- Ion Engine Improved Treads Improved Treads Medium Storage Unit Large Storage Unit Assault Rifle Assault Rifle Assault Rifle Assault Rifle Mining Laser [Rating: 13] Favorites ----------- Power Ion Engine Engine Ion Engine Propulsion Improved Treads Treads Improved Treads Leg Aluminum Leg Wheel Compact Wheel Utility High-capacity Storage Unit Device Improved Terrain Scanner Storage High-capacity Storage Unit Weapon Assault Rifle Energy Gun Particle Gun Energy Cannon Beam Cannon Ballistic Gun Assault Rifle Launcher Rocket Launcher Build | -11 -10 -10 ------- Run | Scr Mat Min Slots Evolved . | . . . Power . | . . . Propulsion . | . . . Utility . | . . . Weapon . | . . . Parts Attached 27 | 5 21 1 Power 2 | . 2 . Engine 2 | . 2 . Core . | . . . Reactor . | . . . Propulsion 9 | 2 7 . Treads 6 | 1 5 . Leg . | . . . Wheel 3 | 1 2 . Hover . | . . . Flight . | . . . Utility 5 | 2 3 . Device 2 | 2 . . Storage 3 | . 3 . Processor . | . . . Hackware . | . . . Protection . | . . . Artifact . | . . . Weapon 11 | 1 9 1 Energy Gun 3 | 1 2 . Energy Cannon 1 | . 1 . Ballistic Gun 6 | . 6 . Ballistic Cannon . | . . . Launcher 1 | . . 1 Special Weapon . | . . . Impact Weapon . | . . . Slashing Weapon . | . . . Piercing Weapon . | . . . Special Melee Weapon . | . . . Unidentified Prototypes . | . . . Parts Lost 3 | . . 3 Power 1 | . . 1 Propulsion 1 | . . 1 Utility . | . . . Weapon 1 | . . 1 Highest Loss Streak 3 | . . 3 Average Slot Usage (%) 99 | . 99 99 Engine 14 | . 14 14 Treads 26 | . 26 28 Wheel 1 | . 1 . Device 6 | . 8 . Storage 20 | . 18 28 Energy Cannon 6 | . 8 . Ballistic Gun 20 | . 19 27 Naked Turns . | . . . Heaviest Build 73 | 12 73 73 Greatest Support 46 | 20 46 46 Greatest Overweight (x) 2 | . 2 1 Average Overweight (x) . | . . 1 Largest Inventory Capacity 20 | 6 20 20 Average Capacity 14 | 6 13 20 Most Carried 20 | 6 20 20 Average Carried 13 | 4 11 19 Final Capacity 20 | 6 20 20 Final Carried 20 | 4 20 20 Class Distribution -------------------- 52% | Mutant 47% | Hauler-Mutant Dominant Class ---------------- Mutant | -10/Materials Hauler-Mutant | -10/Mines Resources | -11 -10 -10 ----------- Run | Scr Mat Min Matter Collected 766 | 262 377 127 Remotely . | . . . Salvage Created 956 | 137 511 308 Parts 66 | 7 39 20 Haulers Intercepted 2 | . 2 . Recyclers Shooed 1 | . . 1 Parts Field Recycled . | . . . Retrieved Matter . | . . . Parts Self-Destructed . | . . . Prevented . | . . . Kills | -11 -10 -10 ------- Run | Scr Mat Min Combat Hostiles Destroyed 32 | . 13 19 Guns 15 | . 8 7 Cannons 5 | . 5 . AOE 12 | . . 12 Classes Destroyed 9 | 2 5 2 Worker 2 | . . 2 Builder 1 | . 1 . Tunneler 2 | 2 . . Hauler 2 | . 2 . Recycler 1 | 1 . . Operator 2 | . 2 . Swarmer 9 | . 6 3 Grunt 11 | . 7 4 Assembled 12 | . . 12 Thug 1 | . . 1 Best Kill Streak 13 | 2 6 13 Combat Bots Only 12 | . 6 12 Max Kills in Single Turn 4 | 1 1 4 Gunslinging . | . . . Exploded 4 | . . 4 Melee . | . . . Uniques/NPCs Destroyed . | . . . Combat | -11 -10 -10 -------- Run | Scr Mat Min Damage Taken 1434 | 14 479 941 Core 256 | . 51 205 Absorbed by Shields . | . . . Core Remaining (%) 100 | 100 . . Volleys Fired 69 | 4 43 22 Largest 2 | 2 2 2 Hottest 80 | 60 80 40 Shots Fired 134 | 8 86 40 Gun 98 | 8 54 36 Cannon 32 | . 32 . Launcher 4 | . . 4 Special . | . . . Kinetic 94 | 4 54 36 Thermal 32 | . 32 . Explosive 4 | . . 4 Electromagnetic 4 | 4 . . Robot Hit Streak 13 | 5 13 13 Robot Miss Streak 6 | 2 6 2 Penetration Max . | . . . Secondary Targets 2 | . . 2 Max Gunslinging Chain 1 | . . 1 Shots Hit Robots 90 | 5 56 29 Core Hits 82 | 4 29 49 Critical Hits . | . . . Critical Kills . | . . . Critical Parts Destroyed . | . . . Melee Attacks . | . . . Impact . | . . . Slashing . | . . . Piercing . | . . . Sneak Attacks . | . . . Combat Hostiles . | . . . Follow-up Attacks . | . . . Damage Inflicted 2403 | 88 878 1437 Guns 884 | 67 454 363 Cannons 368 | . 368 . Explosions 1026 | 21 . 1005 Melee . | . . . Ramming 125 | . 56 69 Kinetic 854 | 37 454 363 Thermal 389 | 21 368 . Explosive 1005 | . . 1005 Electromagnetic 30 | 30 . . Impact . | . . . Slashing . | . . . Piercing . | . . . Highest Corruption 3 | . 3 3 Average Corruption 2 | . 1 3 Corruption Purged . | . . . Effects 22 | . 8 14 Message Errors 7 | . 3 4 Matter Fused 5 | . 2 3 Heat Flow Errors 3 | . 1 2 Energy Discharges 5 | . 1 4 Data Loss (minor) 2 | . 1 1 Overload Shots . | . . . Overflow Damage 27 | . . 27 Projectiles . | . . . Explosions 27 | . . 27 Melee . | . . . Knockbacks . | . . . Impact . | . . . Kinetic . | . . . Secondary . | . . . Self-Inflicted Damage 110 | 14 . 96 Shots 4 | 1 . 3 Rammed 20 | . 9 11 Targets Rammed 22 | . 10 12 Kicked . | . . . Crushed 2 | . 1 1 Highest Temperature 181 | 12 180 181 Average Temperature 49 | 12 50 51 Received Heat Transfer 266 | . 162 104 Siege Activations . | . . . Robots Corrupted . | . . . Combat Hostiles . | . . . Parts Fried . | . . . Impact Corruptions . | . . . Robots Melted . | . . . Combat Hostiles . | . . . Parts Melted . | . . . Heat Transferred 827 | 50 777 . Parts Sabotaged . | . . . Parts Stolen . | . . . Parts Stripped . | . . . Power Chain Reactions 1 | 1 . . Missiles Intercepted . | . . . Alert | -11 -10 -10 ------- Run | Scr Mat Min Peak Influence 253 | 15 253 145 Initial 59 | . 9 59 Average 96 | 10 106 68 Maximum Alert Level 1 | . 1 . Low Security (%) 92 | 100 90 100 Level 1 7 | . 9 . Level 2 . | . . . Level 3 . | . . . Level 4 . | . . . Level 5 . | . . . High Security . | . . . Max Security . | . . . Squads Dispatched 5 | . 5 . Investigation 2 | . 2 . Extermination . | . . . Reinforcement 3 | . 3 . Assault . | . . . Garrison . | . . . Intercept . | . . . Construction Impeded . | . . . Haulers Reinforced . | . . . Stealth | -11 -10 -10 --------- Run | Scr Mat Min Distress Signals 3 | . 3 . Communications Jammed . | . . . Distress Signals . | . . . Times Spotted 58 | . 32 26 Peak Tracking Total 17 | . 7 17 Tactical Retreats 1 | . 1 . Traps | -11 -10 -10 ------- Run | Scr Mat Min Traps Triggered 2 | . 2 . Indirectly . | . . . Trap Hack Attempts . | . . . Triggered . | . . . Disarmed . | . . . Reprogrammed . | . . . Reused . | . . . Traps Extracted . | . . . Installed . | . . . Triggered . | . . . Machines | -11 -10 -10 ---------- Run | Scr Mat Min Machines Disabled 2 | . 1 1 Max in Single Turn 1 | . 1 1 Machines Sabotaged . | . . . Garrisons Compromised . | . . . Overloaded Fab Kills . | . . . Fab Network Shutdowns . | . . . Hacking | -11 -10 -10 --------- Run | Scr Mat Min Machines Accessed 9 | . 8 1 Terminals 5 | . 5 . Fabricators . | . . . Repair Stations 1 | . 1 . Recycling Units 2 | . 2 . Scanalyzers . | . . . Garrison Access . | . . . Total Hacks 23 | . 22 1 Successful 14 | . 13 1 Failed 8 | . 8 . Catastrophic 2 | . 2 . Database Lockouts 1 | . 1 . Manual 11 | . 11 . Terminals 15 | . 15 . Fabricators . | . . . Repair Stations 2 | . 2 . Recycling Units 5 | . 5 . Scanalyzers . | . . . Garrison Access . | . . . Terminal Hacks 7 | . 6 1 Part Schematic 2 | . 2 . Prototype ID Bank 1 | . 1 . Open Door 1 | . . 1 Branch Access Points 1 | . 1 . Locate Traps 2 | . 2 . Fabricator Hacks . | . . . Repair Station Hacks 2 | . 2 . Scan Component 1 | . 1 . Repair 1 | . 1 . Recycling Unit Hacks 2 | . 2 . Retrieve Components 2 | . 2 . Scanalyzer . | . . . Garrison Access Hacks . | . . . Unauthorized Hacks 3 | . 3 . Terminals 1 | . 1 . Disrupt 1 | . 1 . Fabricators . | . . . Repair Stations . | . . . Recycling Units 2 | . 2 . Tunnel 2 | . 2 . Scanalyzers . | . . . Garrison Access . | . . . Data Cores Recovered . | . . . Used . | . . . Hacking Detections 8 | . 8 . Full Trace Events . | . . . Feedback Events . | . . . Feedback Blocked . | . . . Robot Schematics Acquired . | . . . Robots Built . | . . . Matter . | . . . Time . | . . . Total Robot Build Rating . | . . . Part Schematics Acquired 2 | . 2 . Parts Built . | . . . Matter . | . . . Time . | . . . Total Part Build Rating . | . . . Parts Repaired 1 | . 1 . Time 26 | . 26 . Parts Recycled . | . . . Recycled Matter . | . . . Retrieved Matter . | . . . Retrieved Components 18 | . 18 . Parts Scanalyzed . | . . . Part Schematics Acquired . | . . . Parts Damaged . | . . . Bothacking | -11 -10 -10 ------------ Run | Scr Mat Min Used RIF Installer . | . . . Robots Hacked . | . . . Non-combat . | . . . Combat . | . . . Robot Hacks Applied . | . . . Relay Couplers Released . | . . . Robots Rewired . | . . . Allies Hacked . | . . . Hacks Repelled . | . . . Allies | -11 -10 -10 -------- Run | Scr Mat Min Total Allies . | . . . Largest Group . | . . . Highest-Rated Group . | . . . Highest-Rated Ally . | . . . Total Orders . | . . . Ally Attacks . | . . . Total Damage . | . . . Kills . | . . . Allies Corrupted . | . . . Allies Melted . | . . . Intel | -11 -10 -10 ------- Run | Scr Mat Min Robot Analysis Total . | . . . Derelict Logs Recovered 1 | . . 1 Drone Launches . | . . . Drone Recoveries . | . . . Exploration | -11 -10 -10 ------------- Run | Scr Mat Min Turns Passed 3652 | 81 2798 773 Spaces Moved 1265 | 30 856 379 Core . | . . . Treads 1010 | . 631 379 Legs 11 | 11 . . Wheels 244 | 19 225 . Hover . | . . . Flight . | . . . Fastest Speed 100 | 100 100 180 Average Speed 158 | 107 150 180 Slowest Speed 180 | 120 180 180 Overloaded Moves . | . . . Propulsion Burnouts . | . . . Robots Hopped . | . . . Cave-ins Triggered 1 | . . 1 Exploration Rate (%) 55 | 3 94 70 Regions Visited 2 Branch Regions 1 Pre-discovered Areas 2 | . 2 . Known Exits Taken 1 | . 1 . Unknown Exits Taken 1 | 1 . . Scrap Searched . | . . . Spaces Dug . | . . . Terrain Destroyed 33 | 3 . 30 Melee . | . . . Projectile . | . . . AOE 33 | 3 . 30 Terrain Rammed . | . . . Walls Destroyed . | . . . Machines Disabled . | . . . Actions | -11 -10 -10 --------- Run | Scr Mat Min Total 2775 | 71 2281 423 Wait 1335 | 28 1304 3 Move 1263 | 29 855 379 Hop . | . . . Pick Up 29 | 1 25 3 Fast Attach 5 | 1 4 . Attach 3 | 2 1 . Detach 1 | . 1 . Swap 19 | 2 16 1 Drop 29 | 4 22 3 Fire 69 | 4 43 22 Melee . | . . . Ram . | . . . Kick . | . . . Crush 22 | . 10 12 Escape Stasis . | . . . Rewire . | . . . Trap . | . . . Miscellaneous . | . . . Route ------- -11/Scrapyard -10/Materials (discovered 4 exits: [*Mat x3] / *Min) -10/Mines (discovered 1 exit: [*Mat]) History --------- Turn | Location | Event 1 | -11/Scrapyard | Discovered new exit (range 2) 82 | -11/Scrapyard | Entered Materials 103 | -10/Materials | Identified exit to Mines 302 | -10/Materials | Build established: Mutant 1086 | -10/Materials | Discovered new exit (range 9) 1253 | -10/Materials | Repaired Lgt. Treads 1558 | -10/Materials | Discovered new exit (range 13) 1675 | -10/Materials | Discovered new exit (range 9) 1903 | -10/Materials | Central database locked down 2200 | -10/Materials | Build established: Hauler-Mutant 2880 | -10/Materials | Entered Mines 2962 | -10/Mines | Received a Rocket Launcher from a helpful Derelict 3021 | -10/Mines | Learned Materials garrison access intel 3077 | -10/Mines | Found the Drone Emporium 3093 | -10/Mines | Found Prototype Device 3630 | -10/Mines | Discovered new exit (range 15) 3634 | -10/Mines | Assembled infested the area 3650 | -10/Mines | Core integrity fell below 50% 3654 | -10/Mines | Crushed by falling debris 3654 | -10/Mines | Smashed by cave-in Last Messages --------------- 03646_ Assault Rifle destroyed. 03646_ Destroyed Assault Rifle. 03646_ Destroyed Asb. Hover Unit. 03646_ as-56436 destroyed. 03646_ as-21670 destroyed. 03647_ as-49081 destroyed. 03648_ K-01 Serf collects debris. 03648_ Slammed into as-80041. 03649_ YDUFLSYFAUOXTOT%KTG>VXIZIEBNOS/M L>&A 03650_ K-01 Serf collects debris. 03651_ as-84395 sneak attacks. 03651_ K-01 Serf system corrupted by crushing effect. 03651_ K-01 Serf knocked back. 03652_ K-01 Serf system terminally corrupted. 03654_ The unstable cave ceiling collapses. 03654_ Crushed by falling debris. 03654_ Ion Engine destroyed. 03654_ System corrupted by crushing effect (+5). 03654_ Imp. Treads destroyed. 03654_ System corrupted by crushing effect (+5). Map ----- +----------------------------------------------------+ | | | ?????????????????????????????????????????????????? | | ?????????????????????????????????????????????????? | | ?????????????????????????????????????????????????? | | ?????????????????????????????????????????????????? | | ?????????????????????????????????????????????????? | | ?????????????????????????????????????????????????? | | ?????????????????????????????????????????????????? | | ?????????????????????????????????????????????????? | | ?????????????????????????????????????????????????? | | ?????????????????????????????????????????????????? | | ?????????????????????????????????????????????????? | | ?????????????????????????????????????????????????? | | ?????????????????????????????????????????????????? | | ?????????????????????????????????????????????????? | | ???????????????????????#?????????????????????????? | | ??????????????????????? #????????????????????????? | | ??????????????????????? ####????????????????????? | | ??????????????????????##a ##???????????????????? | | ?????????????????????## a< #???????? ??????????? | | ?????????????????????# %% ####### ???????????? | | ?????????????????????? % ?????????????? | | ??????????????????????# ???????????????? | | ??????????????????????# % #?????????????????? | | ???????????????????????# #??????????????????? | | ???? #???????????????# @ a ##?????????????????? | | ??? #?????????????## a % #?????????????????? | | ??? #???????????## #?????????????????? | | ?? ???????????# a ##?????????????????? | | ?? ??????????# a #??????????????????? | | ? ??????????## * #?????????????????? | | ? #??####???## #?????????????????? | | ? ### ##### #?????????????????? | | ## ##????????????????? | | #### ##???????????????? | | ???# ##?## #???????????????? | | ????# =% #### #???????????????? | | ???????#####=**% ## #???????????????? | | ???????????### ### #???????????????? | | ##############=#?###### #???????????????? | | % =[ #??????## #???????????????? | | ################???????## ##???????????????? | | #???????????????????????### ##????????????????? | | #?????????????????????????######?????????????????? | | ???????????????????????????????????#############?? | | ????################???????????????# #?? | | ???##""## #???????????????# #?? | | ???#" !%# #???????????????# #?? | | ???#"[ #???????????????# """ """ #?? | | ???#" %%% #???????????????# """ """ #?? | +----------------------------------------------------+ Best States ------------- Heat Dissipation 25 Energy Generation 10 Energy Capacity 250 Matter Stores 300 Matter Capacity 300 Sight Range 16 Terrain Scan Range 16 Terrain Scan Density 10 Evasion (%) 40 Recoil Reduction 2 Item Schematics ----------------- Med. Storage Unit | -10/Materials | Hacked Hcp. Storage Unit | -10/Materials | Hacked Robot Schematics ------------------ None Fabricated ------------ Nothing Alien Tech Used ----------------- None Achievements -------------- None Challenges ------------ None Game ------ Seed NetworkRestorationSheargun Manual? 0 Play Time 00:19:10 Cumulative 324.7 hours Start 2022.01.16 @ 19:16:44 End 2022.01.16 @ 19:36:13 Sessions 1 Manual Loads 0 Difficulty Rogue Special Mode None Game No. 246 Rogue 246 Adventurer 0 Explorer 0 Win Type - Total 6 Types 5/0/1/0/0/0/0/0/0 Lore% 54 Gallery% 78 Achievement% 62 Wizard Run 0 Options --------- ASCII 0 Keyboard 0 Movement Numpad Keybinds 0 Fullscreen 2 Font 18/TerminusBold Map View 76x50 Tactical HUD 1 Map Filters NONE Filters NONE Steam 1 RUN: 603cbca5-7e4b-4016-886d-ac858c8e7830